bitfinex/quotes_BTCUSD_20240927
["timestamp","ask_amount","ask_price","bid_price","bid_amount"]
[1727446035381,0.30680294,66000.0,65988.0,0.001656]
[1727446035382,0.151538,65990.0,65988.0,0.001656]
[1727446035602,0.30682594,65990.0,65988.0,0.001656]
[1727446036077,0.45836394,65990.0,65988.0,0.001656]
[1727446036317,0.30682794,65989.0,65988.0,0.001656]
[1727446036778,0.40682794,65989.0,65988.0,0.001656]
[1727446037012,0.42982794,65989.0,65988.0,0.001656]
[1727446037262,0.42982794,65989.0,65988.0,0.002656]
[1727446037503,1.11890383,65989.0,65988.0,0.002656]
[1727446037718,1.1852773,65989.0,65988.0,0.002656]
[1727446038025,1.31179554,65989.0,65988.0,0.002656]
[1727446038125,1.32579554,65989.0,65988.0,0.003656]
[1727446038589,1.2132773,65989.0,65988.0,0.003656]
[1727446038835,1.2132773,65989.0,65976.0,0.22790811]
[1727446038836,0.251567,65977.0,65976.0,0.22790811]
[1727446039068,0.40685494,65977.0,65976.0,0.22790811]
[1727446039522,0.151575,65974.0,65970.0,0.151582]
[1727446039733,0.15528794,65973.0,65969.0,0.151586]
[1727446039959,0.15528794,65973.0,65971.0,0.151581]
[1727446040214,0.15528794,65973.0,65965.0,0.005]
[1727446040439,0.15528794,65973.0,65967.0,0.22790811]
[1727446040669,0.15528794,65973.0,65970.0,0.151582]
[1727446040900,0.008,65974.0,65973.0,0.151577]
[1727446041128,0.008,65974.0,65973.0,0.156577]
[1727446041351,0.008,65974.0,65968.0,0.1835]
[1727446041352,0.15528794,65984.0,65975.0,0.005]
[1727446041588,0.27311964,65991.0,65968.0,0.1835]
[1727446041589,0.22790811,65991.0,65981.0,0.005]
[1727446041863,0.11304253,65997.0,65981.0,0.005]
[1727446041864,0.04521701,66005.0,65994.0,0.005]
[1727446042104,0.37942411,66000.0,65995.0,0.151525]
[1727446042355,0.000828,66007.0,65999.0,0.005]
[1727446042602,0.000828,66007.0,65988.0,0.23093866]
[1727446042603,0.15611594,66007.0,66006.0,0.151501]
[1727446043619,0.000828,66007.0,66006.0,0.156501]
[1727446043858,0.009828,66007.0,66006.0,0.157501]
[1727446044081,0.018828,66007.0,66006.0,0.157501]
[1727446044323,0.009828,66007.0,66006.0,0.156501]
[1727446044574,0.000828,66007.0,66006.0,0.156501]
[1727446044810,0.000828,66007.0,66006.0,0.158501]
[1727446044811,0.009828,66007.0,66006.0,0.158501]
[1727446045056,0.009828,66007.0,66006.0,0.368101]
[1727446046024,0.000828,66007.0,66006.0,0.367101]
[1727446046249,0.000828,66007.0,66006.0,0.365101]
[1727446046483,0.000828,66007.0,66006.0,0.366101]
[1727446046708,0.000828,66007.0,66006.0,0.365101]
[1727446046955,0.000828,66007.0,66006.0,0.367101]
[1727446047879,0.000828,66007.0,66006.0,0.364101]
[1727446048103,0.000828,66007.0,66006.0,0.370101]
[1727446049040,0.000828,66007.0,66006.0,0.372101]
[1727446049272,0.000828,66007.0,66006.0,0.369101]
[1727446049774,0.000828,66007.0,66006.0,0.370101]
[1727446050233,0.000828,66007.0,66006.0,0.372101]
[1727446050489,0.000828,66007.0,66006.0,0.370101]
[1727446052387,0.000828,66007.0,66006.0,0.367101]
[1727446052857,0.000828,66007.0,66006.0,0.370101]
[1727446053099,0.000828,66007.0,66006.0,0.367101]
[1727446053380,0.000828,66007.0,66006.0,0.366101]
[1727446053611,0.001828,66007.0,66006.0,0.376101]
[1727446053850,0.001828,66007.0,66006.0,0.027]
[1727446054080,0.001828,66007.0,66006.0,0.17253064]
[1727446054319,0.000828,66007.0,66006.0,0.17153064]
[1727446054560,0.002828,66007.0,66006.0,0.18353064]
[1727446054784,0.000528,66007.0,66006.0,0.18053064]
[1727446055475,0.000528,66007.0,66006.0,0.36643064]
[1727446055699,0.000528,66007.0,66006.0,0.363401]
[1727446055930,0.0078511,66020.0,66017.0,0.151475]
[1727446056164,0.0078511,66020.0,66013.0,0.01]
[1727446056396,0.0078511,66020.0,66017.0,0.151474]
[1727446057099,0.0078511,66020.0,66018.0,0.151473]
[1727446057388,0.0078511,66020.0,66017.0,0.151475]
[1727446057611,0.0128511,66020.0,66015.0,0.302958]
[1727446057848,0.0078511,66020.0,66017.0,0.151474]
[1727446058092,0.0128511,66020.0,66017.0,0.151475]
[1727446058326,0.454415,66019.0,66015.0,0.005]
[1727446058565,0.151484,66014.0,66011.0,0.22790811]
[1727446058795,0.45823494,66018.0,66011.0,0.22790811]
[1727446058796,0.151481,66015.0,66011.0,0.22790811]
[1727446059022,0.302952,66017.0,66013.0,0.005]
[1727446059253,0.302952,66017.0,66008.0,0.302993]
[1727446059254,0.151484,66014.0,66008.0,0.156495]
[1727446059490,0.151484,66014.0,66007.0,0.01]
[1727446059491,0.151488,66012.0,66009.0,0.005]
[1727446059725,0.0178511,66020.0,66006.0,0.005]
[1727446059726,0.302987,66010.0,66006.0,0.005]
[1727446059948,0.30677794,66011.0,66006.0,0.005]
[1727446060181,0.15528794,66011.0,66006.0,0.005]
[1727446060404,0.30677894,66011.0,66006.0,0.005]
[1727446060622,0.30677794,66011.0,66007.0,0.151497]
[1727446060860,0.151485,66013.0,66008.0,0.151496]
[1727446061140,0.151505,66004.0,66003.0,0.005]
[1727446061396,0.151505,66004.0,66000.0,0.151513]
[1727446061397,0.151503,66006.0,66005.0,0.005]
[1727446061636,0.302985,66010.0,65997.0,0.303044]
[1727446061637,0.15528794,66009.0,66006.0,0.001]
[1727446061864,0.151499,66007.0,66006.0,0.001]
[1727446062109,0.151499,66007.0,66002.0,0.23290811]
[1727446062110,0.151501,66006.0,66002.0,0.23290811]
[1727446062368,0.15528794,66007.0,66002.0,0.23290811]
[1727446062576,0.151507,66004.0,66002.0,0.23290811]
[1727446062806,0.15528794,66007.0,66002.0,0.23290811]
[1727446063032,0.30678894,66007.0,66002.0,0.15651]
[1727446063258,0.151501,66006.0,66002.0,0.005]
[1727446063482,0.15528794,66007.0,66002.0,0.005]
[1727446063745,0.15528794,66007.0,66002.0,0.156509]
[1727446063964,0.15528794,66007.0,66002.0,0.158509]
[1727446064193,0.15628794,66007.0,66002.0,0.007]
[1727446064422,0.30778794,66007.0,66002.0,0.005]
[1727446064659,0.15828794,66007.0,66002.0,0.005]
[1727446064882,0.151504,66005.0,66002.0,0.005]
[1727446065106,0.151503,66006.0,66002.0,0.005]
[1727446065326,0.16411594,66007.0,66002.0,0.156509]
[1727446065574,0.151501,66006.0,66002.0,0.005]
[1727446065825,0.151501,66006.0,65998.0,0.304691]
[1727446065826,0.303016,66003.0,65998.0,0.001656]
[1727446066059,0.151517,65999.0,65998.0,0.001656]
[1727446066292,0.59597608,65999.0,65998.0,0.001656]
[1727446066525,0.30680494,65999.0,65998.0,0.001656]
[1727446066755,0.15528794,65999.0,65998.0,0.001656]
[1727446067221,0.15528794,65999.0,65998.0,0.002656]
[1727446067222,0.30680494,65999.0,65998.0,0.002656]
[1727446067453,0.32080494,65999.0,65998.0,0.002656]
[1727446067718,0.60997608,65999.0,65998.0,0.001656]
[1727446068195,0.60997608,65999.0,65981.0,0.313113]
[1727446068196,0.151549,65985.0,65984.0,0.22790811]
[1727446068429,0.30683694,65985.0,65984.0,0.22790811]
[1727446069167,0.30683694,65985.0,65976.0,0.53104611]
[1727446069168,0.303104,65984.0,65976.0,0.22790811]
[1727446069380,0.15528794,65983.0,65979.0,0.151562]
[1727446069611,0.15528794,65983.0,65977.0,0.005]
[1727446069847,0.15528794,65983.0,65982.0,0.151556]
[1727446071673,0.04522763,65997.0,65979.0,0.005]
[1727446071906,0.06784145,65998.0,65986.0,0.151546]
[1727446071907,0.151535,65991.0,65986.0,0.151546]
[1727446072137,0.303053,65995.0,65984.0,0.005]
[1727446072138,0.15528794,65990.0,65984.0,0.005]
[1727446072389,0.15528794,65990.0,65987.0,0.151542]
[1727446072873,0.15528794,65990.0,65986.0,0.303093]
[1727446073092,0.15528794,65990.0,65989.0,0.15154]
[1727446073565,0.31282594,65990.0,65985.0,0.151548]
[1727446073793,0.15528794,65990.0,65989.0,0.15154]
[1727446074022,0.16128794,65990.0,65989.0,0.15154]
[1727446074241,0.16728794,65990.0,65989.0,0.15154]
[1727446074469,0.16128794,65990.0,65989.0,0.15154]
[1727446074694,0.16728794,65990.0,65989.0,0.15154]
[1727446075158,0.16728794,65990.0,65984.0,0.005]
[1727446075441,0.16128794,65990.0,65985.0,0.22790811]
[1727446075676,0.16128794,65990.0,65989.0,0.15154]
[1727446075906,0.16728794,65990.0,65989.0,0.15154]
[1727446076346,0.15528794,65990.0,65989.0,0.15154]
[1727446076573,0.16128794,65990.0,65989.0,0.15154]
[1727446076807,0.16728794,65990.0,65986.0,0.303094]
[1727446077059,0.16128794,65990.0,65985.0,0.22790811]
[1727446077303,0.16128794,65990.0,65988.0,0.15154]
[1727446077568,0.16728794,65990.0,65986.0,0.303093]
[1727446078081,0.16728794,65990.0,65987.0,0.303089]
[1727446078334,0.16728794,65990.0,65988.0,0.151542]
[1727446078611,0.16728794,65990.0,65985.0,0.001656]
[1727446078880,0.16128794,65990.0,65989.0,0.15154]
[1727446079411,0.16728794,65990.0,65989.0,0.15154]
[1727446079954,0.006,65990.0,65989.0,0.15854]
[1727446080391,0.006,65990.0,65989.0,0.16654]
[1727446080394,0.006,65990.0,65985.0,0.001656]
[1727446080395,0.16128794,65990.0,65985.0,0.001656]
[1727446080608,0.16128794,65990.0,65988.0,0.151542]
[1727446080609,0.15528794,65989.0,65988.0,0.151542]
[1727446080817,0.15528794,65989.0,65987.0,0.151544]
[1727446081242,0.15528794,65989.0,65985.0,0.001656]
[1727446081687,0.15528794,65989.0,65988.0,0.151542]
[1727446082447,0.1,66002.0,65990.0,0.005]
[1727446082714,0.1,66004.0,65993.0,0.15153]
[1727446082715,0.151522,65998.0,65993.0,0.15153]
[1727446083092,0.15528794,65997.0,65990.0,0.005]
[1727446083271,0.15528794,65997.0,65993.0,0.15153]
[1727446083525,0.15528794,65997.0,65991.0,0.303071]
[1727446083526,0.15528794,65997.0,65995.0,0.151526]
[1727446084300,0.014,65998.0,65997.0,0.151522]
[1727446085366,0.028,65998.0,65997.0,0.151522]
[1727446085608,0.028,65998.0,65996.0,0.002]
[1727446085609,0.252327,66007.0,65996.0,0.002]
[1727446085873,0.1,66005.0,66002.0,0.15151]
[1727446086168,0.1,66005.0,66003.0,0.151507]
[1727446086169,0.15528794,66004.0,66003.0,0.151507]
[1727446086456,0.000828,66007.0,66006.0,0.151501]
[1727446086715,0.000828,66007.0,66006.0,0.156501]
[1727446087004,0.009828,66007.0,66006.0,0.158501]
[1727446088283,0.000828,66007.0,66006.0,0.158501]
[1727446088744,0.008828,66007.0,66006.0,0.156501]
[1727446088999,0.017828,66007.0,66006.0,0.156501]
[1727446089200,0.000828,66007.0,66006.0,0.156501]
[1727446089460,0.15811594,66007.0,66006.0,0.006]
[1727446089725,0.15811594,66007.0,66006.0,0.004]
[1727446089726,0.59778608,66007.0,66006.0,0.004]
[1727446089974,0.44528708,66007.0,65999.0,0.22790811]
[1727446090222,0.15528794,66006.0,66001.0,0.151512]
[1727446090490,0.30678994,66006.0,66000.0,0.303027]
[1727446090743,0.15528794,66006.0,66003.0,0.151507]
[1727446090989,0.15528794,66006.0,66002.0,0.151509]
[1727446091245,0.15528794,66006.0,66000.0,0.303029]
[1727446091484,0.30678894,66006.0,66002.0,0.151509]
[1727446091734,0.15528794,66006.0,66002.0,0.15151]
[1727446092001,0.30679094,66006.0,66002.0,0.15151]
[1727446092265,0.151505,66004.0,66000.0,0.22790811]
[1727446092520,0.15528794,66006.0,65988.0,0.303082]
[1727446092521,0.22048733,66003.0,65988.0,0.303082]
[1727446092802,0.151533,65992.0,65991.0,0.22790811]
[1727446093072,0.04526379,65995.0,65991.0,0.22790811]
[1727446093499,0.151542,65988.0,65985.0,0.001656]
[1727446093501,0.151542,65988.0,65985.0,0.22956411]
[1727446093780,0.15528794,65988.0,65985.0,0.38111211]
[1727446094022,0.15528794,65988.0,65985.0,0.22956411]
[1727446094257,0.15528794,65988.0,65985.0,0.38111311]
[1727446094531,0.15528794,65988.0,65987.0,0.153201]
[1727446095049,0.303055,65995.0,65987.0,0.153201]
[1727446095050,0.04526647,65997.0,65993.0,0.15153]
[1727446095300,0.04526647,65997.0,65994.0,0.151528]
[1727446095301,0.15528794,65996.0,65994.0,0.151528]
[1727446095576,0.014,65995.0,65994.0,0.151528]
[1727446095831,0.15528794,65995.0,65994.0,0.151528]
[1727446096089,0.15528794,65995.0,65988.0,0.005]
[1727446096090,0.30681494,65995.0,65991.0,0.151535]
[1727446096362,0.15528794,65994.0,65991.0,0.151535]
[1727446096612,0.15528794,65994.0,65987.0,0.001656]
[1727446096613,0.151542,65988.0,65987.0,0.001656]
[1727446096876,0.20056799,65988.0,65987.0,0.153201]
[1727446097096,0.15528794,65988.0,65987.0,0.153201]
[1727446099143,0.011,65995.0,65994.0,0.151528]
[1727446099698,0.04626365,66003.0,65993.0,0.005]
[1727446099947,0.0009836,66003.0,66002.0,0.15151]
[1727446100458,0.15528794,66003.0,66002.0,0.15151]
[1727446102467,0.15528794,66003.0,65997.0,0.303042]
[1727446102715,0.15528794,66002.0,65998.0,0.22790811]
[1727446102953,0.15528794,66002.0,66000.0,0.151512]
[1727446103195,0.15528794,66002.0,66001.0,0.151512]
[1727446104151,0.16828794,66002.0,65997.0,0.005]
[1727446104426,0.16828794,66002.0,65993.0,0.005]
[1727446104672,0.28917114,65998.0,65992.0,0.22790811]
[1727446104903,0.28917114,65998.0,65997.0,0.151522]
[1727446105374,0.04528005,65999.0,65998.0,0.151519]
[1727446105597,0.06792008,66001.0,66000.0,0.151515]
[1727446105827,0.04533742,66001.0,66000.0,0.151515]
[1727446106201,0.15528794,66001.0,66000.0,0.151515]
[1727446106203,0.04533742,66009.0,66006.0,0.151501]
[1727446106364,0.15611594,66007.0,66006.0,0.151501]
[1727446106564,0.000828,66007.0,66006.0,0.151501]
[1727446108955,0.002828,66007.0,66006.0,0.151501]
[1727446109757,0.002828,66007.0,66001.0,0.005]
[1727446109758,0.16011594,66007.0,66001.0,0.005]
[1727446109985,0.15528794,66006.0,66001.0,0.23290811]
[1727446110209,0.15528794,66006.0,66005.0,0.151503]
[1727446110859,0.15528794,66006.0,66002.0,0.303019]
[1727446111081,0.15528794,66006.0,66005.0,0.151503]
[1727446111730,0.002828,66007.0,66004.0,0.303011]
[1727446111942,0.004828,66007.0,66006.0,0.151501]
[1727446112170,0.000828,66007.0,66006.0,0.151501]
[1727446113267,0.002828,66007.0,66006.0,0.151501]
[1727446114536,0.004828,66007.0,66006.0,0.151501]
[1727446115228,0.16011594,66007.0,66006.0,0.151501]
[1727446116147,0.004828,66007.0,66006.0,0.151501]
[1727446117988,0.16011594,66007.0,66006.0,0.151501]
[1727446119679,0.151506,66004.0,66000.0,0.151513]
[1727446119918,0.151515,66000.0,65995.0,0.151526]
[1727446120178,0.20062131,65999.0,65997.0,0.37942811]
[1727446120442,0.04533337,65998.0,65993.0,0.151528]
[1727446120718,0.15528794,65997.0,65996.0,0.151524]
[1727446121735,0.04534198,66006.0,66004.0,0.30301]
[1727446121996,0.09168074,66009.0,66006.0,0.151501]
[1727446121997,0.04633848,66009.0,66006.0,0.151501]
[1727446122259,0.0009965,66009.0,66006.0,0.151501]
[1727446122508,0.04534198,66012.0,66006.0,0.151501]
[1727446122752,0.04534198,66010.0,66006.0,0.151501]
[1727446122996,0.15611594,66007.0,66006.0,0.151501]
[1727446123224,0.34842116,66007.0,66003.0,0.151507]
[1727446123476,0.34842116,66007.0,66001.0,0.454536]
[1727446123477,0.15528794,66006.0,66001.0,0.454536]
[1727446123710,0.20062992,66006.0,66001.0,0.303022]
[1727446123953,0.04534198,66004.0,65998.0,0.303039]
[1727446124200,0.19230522,66002.0,65998.0,0.303039]
[1727446124449,0.151515,66000.0,65992.0,0.303066]
[1727446124690,0.151525,65996.0,65992.0,0.151531]
[1727446124922,0.151525,65996.0,65989.0,0.303078]
[1727446124923,0.15528794,65995.0,65989.0,0.303078]
[1727446125179,0.15528794,65995.0,65989.0,0.303079]
[1727446125411,0.20062992,65995.0,65988.0,0.005]
[1727446125663,0.20062992,65995.0,65994.0,0.151528]
[1727446125664,0.15528794,65995.0,65994.0,0.151528]
[1727446126465,0.16028794,65995.0,65994.0,0.151528]
[1727446127661,0.15528794,65995.0,65994.0,0.151528]
[1727446127894,0.16628794,65995.0,65994.0,0.151528]
[1727446128377,0.016,65995.0,65994.0,0.151528]
[1727446128853,0.011,65995.0,65994.0,0.151528]
[1727446129142,0.021,65995.0,65994.0,0.151528]
[1727446129643,0.021,65995.0,65994.0,0.153528]
[1727446129882,0.021,65995.0,65994.0,0.353628]
[1727446130137,0.021,65995.0,65994.0,0.156528]
[1727446130905,0.01,65995.0,65994.0,0.156528]
[1727446131157,0.016,65995.0,65994.0,0.156528]
[1727446131430,0.006,65995.0,65994.0,0.156528]
[1727446131676,0.012,65995.0,65994.0,0.25245848]
[1727446131920,0.012,65995.0,65994.0,0.249428]
[1727446132160,0.012,65995.0,65994.0,0.445628]
[1727446132665,0.006,65995.0,65994.0,0.445628]
[1727446132910,0.012,65995.0,65994.0,0.445628]
[1727446133690,0.012,65995.0,65994.0,0.447628]
[1727446134204,0.006,65995.0,65994.0,0.447628]
[1727446134464,0.006,65995.0,65994.0,0.449628]
[1727446134969,0.000984,66004.0,66003.0,0.151508]
[1727446135456,0.000828,66006.0,66005.0,0.151503]
[1727446136441,0.15611594,66006.0,66002.0,0.151509]
[1727446136653,0.04619261,66006.0,66005.0,0.151503]
[1727446136924,0.000828,66006.0,66005.0,0.151503]
[1727446137155,0.04619238,66006.0,66005.0,0.151503]
[1727446137402,0.000828,66006.0,66005.0,0.151503]
[1727446137634,0.000828,66006.0,66005.0,0.156503]
[1727446137863,0.008828,66006.0,66005.0,0.156503]
[1727446138295,0.015828,66006.0,66005.0,0.156503]
[1727446138996,0.015828,66006.0,66005.0,0.158503]
[1727446139292,0.015828,66006.0,66005.0,0.156503]
[1727446139526,0.015828,66006.0,66005.0,0.158503]
[1727446140000,0.015828,66006.0,66005.0,0.156503]
[1727446140716,0.17111594,66006.0,66005.0,0.151503]
[1727446143545,0.015828,66006.0,66005.0,0.24873294]
[1727446143779,0.015828,66006.0,66005.0,0.70352088]
[1727446144016,0.0009804,66017.0,66016.0,0.01]
[1727446144320,0.22790811,66026.0,66019.0,0.166471]
[1727446144540,0.22790811,66026.0,66019.0,0.16950008]
[1727446144777,0.0009933,66030.0,66019.0,0.17150008]
[1727446145233,0.0009933,66030.0,66019.0,0.25390008]
[1727446146138,0.0009933,66030.0,66019.0,0.250871]
[1727446146362,0.0088511,66020.0,66019.0,0.25789967]
[1727446146588,0.0088511,66020.0,66019.0,0.45002885]
[1727446146853,0.0078511,66020.0,66019.0,0.82819623]
[1727446147078,0.0009933,66030.0,66022.0,0.241164]
[1727446147304,0.22790811,66037.0,66022.0,0.59228033]
[1727446147529,0.22790811,66037.0,66022.0,0.58925194]
[1727446148430,0.22888901,66037.0,66022.0,0.58925194]
[1727446148620,0.00118298,66023.0,66022.0,0.60025194]
[1727446149149,0.00218298,66023.0,66022.0,0.61425194]
[1727446149600,0.00118298,66023.0,66022.0,0.60025194]
[1727446150068,0.00018298,66023.0,66022.0,0.450964]
[1727446150788,0.00118298,66023.0,66022.0,0.84816005]
[1727446151021,0.00018304,66032.0,66031.0,0.166444]
[1727446151273,0.20565838,66057.0,66056.0,0.151386]
[1727446151507,0.20565838,66057.0,66053.0,0.0782]
[1727446151508,0.22809154,66064.0,66063.0,0.15137]
[1727446151745,0.22809154,66064.0,66058.0,0.005]
[1727446152026,0.00018343,66064.0,66058.0,0.005]
[1727446152256,0.00018343,66064.0,66063.0,0.15137]
[1727446152496,0.00018343,66064.0,66063.0,0.15637]
[1727446152734,0.00018343,66064.0,66063.0,0.16637]
[1727446152968,0.00018343,66064.0,66063.0,0.15637]
[1727446153247,0.34860055,66064.0,66060.0,0.005]
[1727446153446,0.15647137,66064.0,66060.0,0.005]
[1727446153704,0.15647137,66064.0,66058.0,0.001]
[1727446153705,0.15528794,66063.0,66058.0,0.001]
[1727446153952,0.151379,66059.0,66058.0,0.001]
[1727446154185,0.15528794,66059.0,66058.0,0.001]
[1727446154425,0.19831261,66064.0,66061.0,0.151373]
[1727446154643,0.19831261,66064.0,66063.0,0.005]
[1727446154644,0.00518343,66064.0,66063.0,0.005]
[1727446154875,0.00018343,66064.0,66063.0,0.005]
[1727446155103,0.00618343,66064.0,66063.0,0.005]
[1727446155566,0.00618343,66064.0,66063.0,0.15637]
[1727446155567,0.00018343,66064.0,66063.0,0.15637]
[1727446155809,0.00718343,66064.0,66063.0,0.15637]
[1727446156271,0.00718343,66064.0,66061.0,0.001]
[1727446156521,0.01018343,66064.0,66063.0,0.005]
[1727446156990,0.15455143,66064.0,66063.0,0.005]
[1727446157209,0.15455143,66064.0,66061.0,0.001]
[1727446157210,0.151372,66062.0,66061.0,0.001]
[1727446157449,0.30665994,66062.0,66061.0,0.001]
[1727446157711,0.15528794,66062.0,66061.0,0.001]
[1727446157945,0.00318343,66064.0,66061.0,0.001]
[1727446157946,0.00818343,66064.0,66063.0,0.006]
[1727446158201,0.00518343,66064.0,66063.0,0.15737]
[1727446158424,0.00018343,66064.0,66063.0,0.005]
[1727446158670,0.00018343,66064.0,66063.0,0.15637]
[1727446159133,0.00018343,66064.0,66063.0,0.15939701]
[1727446159373,0.00618343,66064.0,66063.0,0.16039701]
[1727446159833,0.001,66069.0,66068.0,0.156359]
[1727446160057,0.001,66069.0,66068.0,0.17138569]
[1727446160290,0.001,66069.0,66068.0,0.32667363]
[1727446160512,0.001,66069.0,66068.0,0.32364694]
[1727446160739,0.000828,66070.0,66069.0,0.012]
[1727446160997,0.000828,66070.0,66069.0,0.32167013]
[1727446161229,0.000828,66070.0,66069.0,0.31864394]
[1727446161467,0.000828,66070.0,66069.0,0.43224394]
[1727446161704,0.000828,66073.0,66072.0,0.16835]
[1727446161932,0.000828,66073.0,66072.0,0.58453794]
[1727446162636,0.000828,66073.0,66072.0,0.42925]
[1727446162870,0.000828,66073.0,66072.0,0.44025]
[1727446163101,0.00899248,66085.0,66081.0,0.151329]
[1727446163343,0.00899248,66085.0,66082.0,0.151326]
[1727446163569,0.00899248,66085.0,66081.0,0.01]
[1727446163570,0.00899248,66085.0,66084.0,0.156322]
[1727446167639,0.0105,66100.0,66095.0,0.015]
[1727446167883,0.22790811,66097.0,66095.0,0.16932219]
[1727446168140,0.0105,66100.0,66099.0,0.005]
[1727446168383,0.0105,66100.0,66093.0,0.081]
[1727446168617,0.0105,66100.0,66082.0,0.1801]
[1727446168618,0.0105,66100.0,66092.0,0.005]
[1727446168868,0.0105,66100.0,66093.0,0.37920811]
[1727446168869,0.15528794,66099.0,66093.0,0.37920811]
[1727446169103,0.0105,66100.0,66099.0,0.005]
[1727446169350,0.0055,66100.0,66099.0,0.005]
[1727446169585,0.0055,66100.0,66099.0,0.156288]
[1727446169861,0.0065,66100.0,66099.0,0.156288]
[1727446170908,0.0065,66100.0,66097.0,0.005]
[1727446171177,0.0115,66100.0,66099.0,0.001]
[1727446171455,0.0055,66100.0,66099.0,0.156288]
[1727446171721,0.0105,66100.0,66099.0,0.157288]
[1727446171984,0.0065,66100.0,66099.0,0.001]
[1727446172243,0.3035262,66109.0,66099.0,0.001]
[1727446172532,0.3035262,66109.0,66099.0,0.15931156]
[1727446172533,0.005,66100.0,66099.0,0.15931156]
[1727446172791,0.0009932,66109.0,66099.0,0.15931156]
[1727446172792,0.151272,66106.0,66099.0,0.156286]
[1727446173030,0.302526,66110.0,66099.0,0.157286]
[1727446173031,0.001,66100.0,66099.0,0.157286]
[1727446173305,0.15528794,66105.0,66099.0,0.157286]
[1727446173306,0.15528794,66105.0,66099.0,0.00411348]
[1727446173590,0.2880002,66102.0,66100.0,0.151284]
[1727446173991,0.2880002,66102.0,66099.0,0.00411348]
[1727446173992,0.2880002,66102.0,66099.0,0.15540048]
[1727446173993,0.2880002,66102.0,66100.0,0.151285]
[1727446174269,0.005,66100.0,66099.0,0.00511348]
[1727446174560,0.005,66100.0,66065.0,0.302728]
[1727446174561,0.15528794,66100.0,66090.0,0.23290811]
[1727446174843,0.151285,66100.0,66099.0,0.001]
[1727446175315,0.151297,66095.0,66090.0,0.22790811]
[1727446175590,0.303402,66100.0,66090.0,0.22790811]
[1727446175591,0.15528794,66094.0,66090.0,0.22790811]
[1727446175840,0.151308,66091.0,66085.0,0.15543248]
[1727446176090,0.15528794,66090.0,66085.0,0.15543248]
[1727446176324,0.15528794,66090.0,66086.0,0.151315]
[1727446176561,0.15528794,66090.0,66083.0,0.22790811]
[1727446176855,0.308402,66100.0,66089.0,0.00411348]
[1727446176856,0.2938282,66100.0,66089.0,0.00411348]
[1727446177126,0.2938282,66100.0,66083.0,0.24093463]
[1727446177127,0.15528794,66099.0,66094.0,0.302595]
[1727446177399,0.15528794,66099.0,66096.0,0.151295]
[1727446177400,0.0009941,66097.0,66096.0,0.151295]
[1727446177644,0.15528794,66097.0,66096.0,0.151295]
[1727446178657,0.14528794,66097.0,66096.0,0.151295]
[1727446179135,0.2888282,66100.0,66099.0,0.151288]
[1727446179397,0.15611594,66100.0,66099.0,0.151288]
[1727446179643,0.15611594,66100.0,66096.0,0.303585]
[1727446179898,0.005,66097.0,66096.0,0.45488]
[1727446180119,0.005,66097.0,66096.0,0.152295]
[1727446180353,0.31157994,66097.0,66096.0,0.001]
[1727446180817,0.50350421,66097.0,66096.0,0.001]
[1727446181289,0.34721221,66097.0,66083.0,0.23202159]
[1727446181562,0.15528794,66096.0,66095.0,0.151297]
[1727446181789,0.15528794,66096.0,66083.0,0.23790811]
[1727446181790,0.15528794,66096.0,66094.0,0.151298]
[1727446182013,0.15528794,66096.0,66095.0,0.151297]
[1727446182240,0.15528794,66096.0,66092.0,0.302603]
[1727446182467,0.2877923,66093.0,66090.0,0.00411348]
[1727446182714,0.15528794,66092.0,66084.0,0.00411348]
[1727446182922,0.15528794,66092.0,66085.0,0.302639]
[1727446183153,0.15528794,66092.0,66083.0,0.302648]
[1727446183377,0.151309,66090.0,66085.0,0.151318]
[1727446183605,0.151309,66090.0,66085.0,0.15132]
[1727446183606,0.15528794,66089.0,66085.0,0.15132]
[1727446183840,0.15528794,66089.0,66085.0,0.151318]
[1727446184093,0.15528794,66089.0,66081.0,0.00411348]
[1727446184332,0.59439324,66089.0,66084.0,0.151321]
[1727446184568,0.44308024,66089.0,66082.0,0.302651]
[1727446184802,0.44308024,66089.0,66081.0,0.00411348]
[1727446185031,0.44308024,66089.0,66087.0,0.151314]
[1727446185265,0.44308024,66089.0,66085.0,0.30264]
[1727446185512,0.45008024,66089.0,66083.0,0.302647]
[1727446185740,0.44308024,66089.0,66086.0,0.151317]
[1727446185970,0.59439124,66089.0,66083.0,0.302648]
[1727446186202,0.16828794,66089.0,66088.0,0.151313]
[1727446186916,0.16228794,66089.0,66088.0,0.151313]
[1727446187621,0.15528794,66089.0,66088.0,0.151313]
[1727446187840,0.16328794,66089.0,66088.0,0.151313]
[1727446188085,0.15528794,66089.0,66088.0,0.151313]
[1727446188338,0.1619022,66089.0,66086.0,0.001]
[1727446188579,0.1689022,66089.0,66086.0,0.001]
[1727446188810,0.1599022,66089.0,66085.0,0.001656]
[1727446189058,0.1599022,66089.0,66088.0,0.151313]
[1727446189288,0.1599022,66089.0,66088.0,0.152313]
[1727446189516,0.1669022,66089.0,66088.0,0.152313]
[1727446189750,0.1599022,66089.0,66085.0,0.304295]
[1727446189978,0.1599022,66089.0,66088.0,0.151313]
[1727446190208,0.1679022,66089.0,66088.0,0.151313]
[1727446190442,0.1679022,66089.0,66086.0,0.001]
[1727446190713,0.1679022,66089.0,66088.0,0.151313]
[1727446190909,0.1609022,66089.0,66088.0,0.151313]
[1727446191131,0.1699022,66089.0,66088.0,0.151313]
[1727446191359,0.1529022,66089.0,66088.0,0.151313]
[1727446191708,0.1699022,66089.0,66088.0,0.152313]
[1727446191961,0.1609022,66089.0,66088.0,0.152313]
[1727446192189,0.1699022,66089.0,66088.0,0.152313]
[1727446194422,0.3212132,66089.0,66088.0,0.001]
[1727446196731,0.1699022,66089.0,66088.0,0.152313]
[1727446197416,0.017,66089.0,66088.0,0.15642648]
[1727446199362,0.009,66089.0,66088.0,0.15542648]